Workbook

Sheet Anlæg
B2: K9 | F2: 11/16 | J2: 31
B4: Jan | C4: 4620 | F4: Jan | G4: 310656 | J4: Jan | K4: 137924
B5: Feb | C5: 6971 | F5: Feb | G5: 443466 | J5: Feb | K5: 115650
B6: Mar | C6: 7149 | F6: Mar | G6: 522988 | J6: Mar | K6: 146933
B7: Apr | C7: 16006 | F7: Apr | G7: 368004 | J7: Apr | K7: 186472
B8: Maj | C8: 15787 | F8: Maj | G8: 404285 | J8: Maj | K8: 115564
B9: Jun | C9: 27087 | F9: Jun | G9: 374537 | J9: Jun | K9: 162146
B10: Jul | C10: 25666 | F10: Jul | G10: 382914 | J10: Jul | K10: 139602
B11: Aug | C11: 31362 | F11: Aug | G11: 334197 | J11: Aug | K11: 133587
B12: Sep | C12: 27723 | F12: Sep | G12: 450126 | J12: Sep | K12: 168679
B13: Okt | C13: 10110 | F13: Okt | G13: 422868 | J13: Okt | K13: 149874
B14: Nov | C14: 17000 | F14: Nov | G14: 232184 | J14: Nov | K14: 84273
B15: Dec | F15: Dec | J15: Dec
C17: =SUM(C4:C15) -> 189481 | G17: =SUM(G4:G15) -> 4246225 | K17: =SUM(K4:K15) -> 1540704
B20: 29 | F20: 41 | J20: 41 Udtap
B22: Jan | C22: 142110 | F22: Jan | G22: 134370 | J22: Jan | K22: 29520
B23: Feb | C23: 239315 | F23: Feb | G23: 168300 | J23: Feb | K23: 73980
B24: Mar | C24: 238852 | F24: Mar | G24: 204830 | J24: Mar | K24: 43200
B25: Apr | C25: 210412 | F25: Apr | G25: 192380 | J25: Apr | K25: 42300
B26: Maj | C26: 246945 | F26: Maj | G26: 226970 | J26: Maj | K26: 59400
B27: Jun | C27: 168113 | F27: Jun | G27: 171670 | J27: Jun | K27: 99540
B28: Jul | C28: 243413 | F28: Jul | G28: 171990 | J28: Jul | K28: 5940
B29: Aug | C29: 131161 | F29: Aug | G29: 168970 | J29: Aug | K29: 66600
B30: Sep | C30: 239304 | F30: Sep | G30: 165060 | J30: Sep | K30: 25740
B31: Okt | C31: 216040 | F31: Okt | G31: 137750 | J31: Okt | K31: 51300
B32: Nov | C32: 105074 | F32: Nov | G32: 74600 | J32: Nov | K32: 39780
B33: Dec | F33: Dec | J33: Dec
C35: =SUM(C22:C33) -> 2180739 | G35: =SUM(G22:G33) -> 1816890 | K35: =SUM(K22:K33) -> 537300

Sheet Diagram Anlæg

Sheet Sammentælling Anlæg
A2: Mængder | D2: Produktionstallene A
B3: 2007 | D3: 2008 | F3: 2009 | H3: 2010 | J3: 2011 | L3: Budget 11
A4: Produktionstal | B4: 906.33 | D4: 918.821 | F4: 941.486 | H4: 1094.021 | J4: 1047.921 | L4: 1088.089
G6: ProduktionstalleneB
B7: 2007 | D7: 2008 | F7: 2009 | H7: 2010 | J7: 2011 | L7: Budget 2011
A8: Produktionstal | B8: 8241.387 | D8: 8783.432 | F8: 9914.53 | H8: 11963.497 | J8: 10768.455 | L8: 11620.538
F9: 9
A10: 4620 | B10: 4620 | G10: =Anlæg!C4 -> 4620 | K10: 4005
A11: 6971 | B11: 6971 | G11: =Anlæg!C5 -> 6971 | K11: 10559
A12: 7149 | B12: 7149 | G12: =Anlæg!C6 -> 7149 | K12: 3868
A13: 16006 | B13: 16006 | G13: =Anlæg!C7 -> 16006 | K13: 3274
A14: 15787 | B14: 15787 | G14: =Anlæg!C8 -> 15787 | K14: 6487
A15: 27087 | B15: 27087 | G15: =Anlæg!C9 -> 27087 | K15: 4179
A16: 25666 | B16: 25666 | G16: =Anlæg!C10 -> 25666 | K16: 8905
A17: 31362 | B17: 31362 | G17: =Anlæg!C11 -> 31362 | K17: 5949
A18: 27723 | B18: 27723 | G18: =Anlæg!C12 -> 27723 | K18: 7415
A19: 10110 | B19: 10110 | G19: =Anlæg!C13 -> 10110 | K19: 4071
A20: 17000 | B20: 17000 | G20: =Anlæg!C14 -> 17000 | K20: 10570
G21: =Anlæg!C15 -> 0 | K21: 2857
C23: 25846 | D23: 48477 | E23: 43974 | F23: 62957 | G23: =Anlæg!C17 -> 189481 | K23: =SUM(K4:K21) -> 72139
B25: 11/16
C26: 2007 | D26: 2008 | E26: 2009 | F26: 2010 | G26: 2011 | H26: 2012 | I26: 2013 | J26: 2014 | K26: Budget 2011
B27: Jan | G27: =Anlæg!G4 -> 310656 | K27: 392599
B28: Feb | G28: =Anlæg!G5 -> 443466 | K28: 362190
B29: Mar | G29: =Anlæg!G6 -> 522988 | K29: 411910
B30: Apr | G30: =Anlæg!G7 -> 368004 | K30: 415333
B31: Maj | G31: =Anlæg!G8 -> 404285 | K31: 370394
B32: Jun | G32: =Anlæg!G9 -> 374537 | K32: 412404
B33: Jul | G33: =Anlæg!G10 -> 382914 | K33: 370318
B34: Aug | G34: =Anlæg!G11 -> 334197 | K34: 377494
B35: Sep | G35: =Anlæg!G12 -> 450126 | K35: 370447
B36: Okt | G36: =Anlæg!G13 -> 422868 | K36: 382622
B37: Nov | G37: =Anlæg!G14 -> 232184 | K37: 352079
B38: Dec | G38: =Anlæg!G15 -> 0 | K38: 311163
C40: 1746531 | D40: 1655419 | E40: 3316729 | F40: 4812051 | G40: =Anlæg!G17 -> 4246225 | K40: =SUM(K27:K38) -> 4528953
B42: 31
C43: 2007 | D43: 2008 | E43: 2009 | F43: 2010 | G43: 2011 | H43: 2012 | I43: 2013 | J43: 2014 | K43: Budget 2011
B44: Jan | G44: =Anlæg!K4 -> 137924 | K44: 166304
B45: Feb | G45: =Anlæg!K5 -> 115650 | K45: 160810
B46: Mar | G46: =Anlæg!K6 -> 146933 | K46: 190482
B47: Apr | G47: =Anlæg!K7 -> 186472 | K47: 189873
B48: Maj | G48: =Anlæg!K8 -> 115564 | K48: 163659
B49: Jun | G49: =Anlæg!K9 -> 162146 | K49: 155176
B50: Jul | G50: =Anlæg!K10 -> 139602 | K50: 161792
B51: Aug | G51: =Anlæg!K11 -> 133587 | K51: 180931
B52: Sep | G52: =Anlæg!K12 -> 168679 | K52: 157313
B53: Okt | G53: =Anlæg!K13 -> 149874 | K53: 156247
B54: Nov | G54: =Anlæg!K14 -> 84273 | K54: 160701
B55: Dec | G55: =Anlæg!K15 -> 0 | K55: 132790
C57: 845143 | D57: 876277 | E57: 1708141 | F57: 1897603 | G57: =SUM(G44:G55) -> 1540704 | K57: =SUM(K44:K55) -> 1976078
B59: 29
C60: 2007 | D60: 2008 | E60: 2009 | F60: 2010 | G60: 2011 | H60: 2012 | I60: 2013 | J60: 2014 | K60: Budget 2011
B61: Jan | G61: =Anlæg!C22 -> 142110 | K61: 190254
B62: Feb | G62: =Anlæg!C23 -> 239315 | K62: 180407
B63: Mar | G63: =Anlæg!C24 -> 238852 | K63: 181672
B64: Apr | G64: =Anlæg!C25 -> 210412 | K64: 205282
B65: Maj | G65: =Anlæg!C26 -> 246945 | K65: 183666
B66: Jun | G66: =Anlæg!C27 -> 168113 | K66: 218544
B67: Jul | G67: =Anlæg!C28 -> 243413 | K67: 178640
B68: Aug | G68: =Anlæg!C29 -> 131161 | K68: 167553
B69: Sep | G69: =Anlæg!C30 -> 239304 | K69: 189806
B70: Okt | G70: =Anlæg!C31 -> 216040 | K70: 189007
B71: Nov | G71: =Anlæg!C32 -> 105074 | K71: 160693
B72: Dec | G72: =Anlæg!C33 -> 0 | K72: 160608
C74: 2366630 | D74: 2666325 | E74: 2414935 | F74: 2364336 | G74: =SUM(G61:G72) -> 2180739 | K74: =SUM(K61:K72) -> 2206132
B76: 41
C77: 2007 | D77: 2008 | E77: 2009 | F77: 2010 | G77: 2011 | H77: 2012 | I77: 2013 | J77: 2014 | K77: Budget 2011
B78: Jan | G78: =Anlæg!G22 -> 134370 | K78: 160348
B79: Feb | G79: =Anlæg!G23 -> 168300 | K79: 162581
B80: Mar | G80: =Anlæg!G24 -> 204830 | K80: 149562
B81: Apr | G81: =Anlæg!G25 -> 192380 | K81: 205288
B82: Maj | G82: =Anlæg!G26 -> 226970 | K82: 168920
B83: Jun | G83: =Anlæg!G27 -> 171670 | K83: 219483
B84: Jul | G84: =Anlæg!G28 -> 171990 | K84: 155267
B85: Aug | G85: =Anlæg!G29 -> 168970 | K85: 143992
B86: Sep | G86: =Anlæg!G30 -> 165060 | K86: 191566
B87: Okt | G87: =Anlæg!G31 -> 137750 | K87: 162672
B88: Nov | G88: =Anlæg!G32 -> 74600 | K88: 136517
B89: Dec | G89: =Anlæg!G33 -> 0 | K89: 142660
C91: 2527293 | D91: 2612444 | E91: 1805117 | F91: 2051600 | G91: =SUM(G78:G89) -> 1816890 | K91: =SUM(K78:K89) -> 1998856
B93: 41 Udtap
C94: 2007 | D94: 2008 | E94: 2009 | F94: 2010 | G94: 2011 | H94: 2012 | I94: 2013 | J94: 2014 | K94: Budget 2011
B95: Jan | G95: =Anlæg!K22 -> 29520 | K95: 63870
B96: Feb | G96: =Anlæg!K23 -> 73980 | K96: 56160
B97: Mar | G97: =Anlæg!K24 -> 43200 | K97: 42760
B98: Apr | G98: =Anlæg!K25 -> 42300 | K98: 60780
B99: Maj | G99: =Anlæg!K26 -> 59400 | K99: 62420
B100: Jun | G100: =Anlæg!K27 -> 99540 | K100: 65160
B101: Jul | G101: =Anlæg!K28 -> 5940 | K101: 48890
B102: Aug | G102: =Anlæg!K29 -> 66600 | K102: 37980
B103: Sep | G103: =Anlæg!K30 -> 25740 | K103: 47140
B104: Okt | G104: =Anlæg!K31 -> 51300 | K104: 66180
B105: Nov | G105: =Anlæg!K32 -> 39780 | K105: 40180
B106: Dec | G106: =Anlæg!K33 -> 0 | K106: 35820
C108: 653375 | D108: 751320 | E108: 547740 | F108: 625500 | G108: =SUM(G95:G106) -> 537300 | K108: =SUM(K95:K106) -> 627340

Sheet Ark3
